Cogmind - Beta 15 --- EXPLORER MODE // 2025.07.06 @ 20:35:29 // Winter2019/RPGLIKE Player: User15V Result: Self-destructed Performance ------------- Evolutions (0) 0 Regions Visited (4) 800 Robots Destroyed (16) 80 Value Destroyed (332) 332 Prototype IDs (18) 360 Alien Tech Used (0) 0 Bonus (272) 272 TOTAL SCORE: 1844 Bonus ------- Registered with UFD 300 Friendly Fire -28 Cogmind --------- Core Integrity 312/600 Matter 252/300 Energy 45/125 System Corruption 0% Temperature Cool (0) Movement Flying (30) Location -9/Scraptown Parts ------- > --- POWER (1) -------- Light Ion Engine > --- PROPULSION (3) --- Flight Unit VTOL Module VTOL Module > --- UTILITY (4) ------ Deep Structural Scanner Improved Terrain Scanner Surveybot 17 Chip Experimental Recalibrator > --- WEAPON (2) ------- Autogun Autogun > --- INVENTORY (4) ---- Flight Unit Autogun Autogun Mining Laser Peak State ------------ > --- POWER ------------ Light Ion Engine > --- PROPULSION ------- Flight Unit VTOL Module VTOL Module > --- UTILITY ---------- Deep Structural Scanner Improved Terrain Scanner Surveybot 17 Chip Experimental Recalibrator > --- WEAPON ----------- Autogun Autogun > --- INVENTORY -------- Flight Unit Autogun Autogun Mining Laser [Rating: 33] Favorites ----------- Power Light Ion Engine Engine Light Ion Engine Propulsion Flight Unit Wheel Compact Wheel Flight Unit Flight Unit Utility Targeting Computer Device Improved Terrain Scanner Processor Targeting Computer Weapon Light Assault Rifle Ballistic Gun Light Assault Rifle Special Weapon Mining Laser Build | -11 -10 -10 -9 -9 ------- Run | Yrd Mat Sub Rec Scr Slots Evolved 6 | 5 . 1 . . Power . | . . . . . Propulsion 2 | 2 . . . . Utility 3 | 2 . 1 . . Weapon 1 | 1 . . . . Parts Attached 24 | 8 3 4 3 6 Power 1 | 1 . . . . Engine 1 | 1 . . . . Core . | . . . . . Reactor . | . . . . . Propulsion 10 | 3 2 3 1 1 Treads . | . . . . . Leg . | . . . . . Wheel 3 | 3 . . . . Hover . | . . . . . Flight 7 | . 2 3 1 1 Utility 6 | 3 . . . 3 Device 4 | 2 . . . 2 Storage . | . . . . . Processor 2 | 1 . . . 1 Hackware . | . . . . . Protection . | . . . . . Artifact . | . . . . . Weapon 7 | 1 1 1 2 2 Energy Gun . | . . . . . Energy Cannon . | . . . . . Ballistic Gun 6 | 1 1 . 2 2 Ballistic Cannon . | . . . . . Launcher . | . . . . . Special Weapon 1 | . . 1 . . Impact Weapon . | . . . . . Slashing Weapon . | . . . . . Piercing Weapon . | . . . . . Special Melee Weapon . | . . . . . Unidentified Prototypes 1 | . . . . 1 Parts Lost . | . . . . . Power . | . . . . . Propulsion . | . . . . . Utility . | . . . . . Weapon . | . . . . . Highest Loss Streak . | . . . . . To Critical Strikes . | . . . . . Average Backups 1 | . . 1 2 4 Power . | . . . . . Propulsion . | . . . . 1 Utility . | . . . . . Weapon 1 | . . 1 1 3 Tool/Special . | . . . . . Unused Backups 1 | . . . 1 . Power . | . . . . . Propulsion . | . . . . . Utility . | . . . . . Weapon 1 | . . . 1 . Tool/Special . | . . . . . Average Slot Usage (%) 88 | . 88 85 90 92 Engine 10 | . 11 10 10 10 Wheel 1 | . 5 . . . Flight 25 | . 18 25 30 30 Device 20 | . 22 20 20 20 Processor 10 | . 11 10 10 12 Ballistic Gun 18 | . 20 16 12 20 Special Weapon 2 | . . 3 7 . Peak Build Rating 33 | 10 11 11 14 33 Average Rating 11 | 3 9 10 12 16 On Entrance 9 | . 10 10 11 14 Naked Turns . | . . . . . Heaviest Build 12 | 6 7 7 11 12 Greatest Support 42 | 42 42 12 12 12 Greatest Overweight (x) 1 | 1 . . . . Average Overweight (x) . | . . . . . Largest Inventory Capacity 4 | 4 4 4 4 4 Average Capacity 3 | 3 4 4 4 4 Most Carried 4 | 4 3 3 4 4 Average Carried 1 | . . 1 2 4 Final Capacity 4 | 4 4 4 4 4 Final Carried 4 | . 1 1 4 4 Class Distribution -------------------- 58% | Scavenger-Mutant 31% | Hacker-Sprinter 5% | Hacker-Mutant 5% | Hacker-Scout Dominant Class ---------------- Scavenger-Mutant | -10/Materials Scavenger-Mutant | -10/Subcaves Hacker-Sprinter | -9/Recycling Hacker-Sprinter | -9/Scraptown Resources | -11 -10 -10 -9 -9 ----------- Run | Yrd Mat Sub Rec Scr Matter Collected 549 | 291 80 120 10 48 Remotely . | . . . . . Salvage Created 567 | 104 323 122 . 18 Parts 37 | 7 18 9 . 3 Haulers Intercepted . | . . . . . Recyclers Shooed 3 | . 3 . . . Parts Field Recycled . | . . . . . Retrieved Matter . | . . . . . Parts Self-Destructed . | . . . . . Prevented . | . . . . . Kills | -11 -10 -10 -9 -9 ------- Run | Yrd Mat Sub Rec Scr Combat Hostiles Destroyed 11 | . 6 5 . . Guns 11 | . 6 5 . . Classes Destroyed 8 | 2 3 2 . 1 Tunneler 1 | 1 . . . . Recycler 2 | 1 1 . . . Turret 1 | . . 1 . . Watcher 1 | . 1 . . . Swarmer 6 | . 2 4 . . Grunt 4 | . 4 . . . Sentry 1 | . . 1 . . Tinkerer 1 | . . . . 1 Best Kill Streak 5 | 1 5 4 . 1 Combat Bots Only 4 | . 4 4 . . Max Kills in Single Turn 1 | 1 1 1 . 1 Gunslinging . | . . . . . Exploded . | . . . . . Melee . | . . . . . Uniques/NPCs Destroyed . | . . . . . Combat | -11 -10 -10 -9 -9 -------- Run | Yrd Mat Sub Rec Scr Hostile Shots Fired 177 | . 41 134 2 . Missed 88 | . 13 73 2 . Hits 89 | . 28 61 . . Projectile 89 | . 28 61 . . Critical Strikes 1 | . . 1 . . Damage Taken 522 | . 222 300 . . Core 426 | . 177 249 . . Absorbed by Shields . | . . . . . Redirected to Core 279 | . 126 153 . . Ignored by Resistances 351 | . 142 209 . . Regen/Repaired (Parts) 183 | . . . . 183 Core Remaining (%) 100 | 100 . . . . Volleys Fired 78 | 11 31 33 1 2 Largest 2 | 1 2 2 1 2 Hottest 100 | 20 40 100 100 46 Shots Fired 132 | 11 56 60 1 4 Gun 125 | 11 56 54 . 4 Cannon . | . . . . . Launcher . | . . . . . Special 7 | . . 6 1 . Kinetic 125 | 11 56 54 . 4 Thermal 7 | . . 6 1 . Explosive . | . . . . . Electromagnetic . | . . . . . Robot Hit Streak 27 | 6 27 19 . 17 Robot Miss Streak 3 | 1 3 2 . . Penetration Max . | . . . . . Secondary Targets 2 | . 2 . . . Max Gunslinging Chain 1 | . 1 . . . Shots Hit Robots 109 | 10 50 45 . 4 Core Hits 42 | 4 20 15 . 3 Critical Kills 1 | . . 1 . . Critical Parts Destroyed 1 | . . 1 . . Critical Strikes 2 | . . 2 . . Destroy 2 | . . 2 . . Melee Attacks . | . . . . . Impact . | . . . . . Slashing . | . . . . . Piercing . | . . . . . Sneak Attacks . | . . . . . Combat Hostiles . | . . . . . Follow-up Attacks . | . . . . . Damage Inflicted 910 | 86 406 362 . 56 Guns 910 | 86 406 362 . 56 Cannons . | . . . . . Explosions . | . . . . . Melee . | . . . . . Ramming . | . . . . . Kinetic 910 | 86 406 362 . 56 Thermal . | . . . . . Explosive . | . . . . . Electromagnetic . | . . . . . Impact . | . . . . . Slashing . | . . . . . Piercing . | . . . . . Highest Corruption . | . . . . . Average Corruption . | . . . . . Corruption Purged . | . . . . . Corruption Blocked . | . . . . . Overload Shots . | . . . . . Overflow Damage . | . . . . . Projectiles . | . . . . . Explosions . | . . . . . Melee . | . . . . . Knockbacks . | . . . . . Impact . | . . . . . Kinetic . | . . . . . Secondary . | . . . . . Self-Inflicted Damage . | . . . . . Shots . | . . . . . Rammed . | . . . . . Targets Rammed . | . . . . . Kicked . | . . . . . Crushed . | . . . . . Highest Temperature 87 | . 87 1 35 18 Average Temperature 34 | . 39 1 20 10 Received Heat Transfer 411 | . 162 249 . . Siege Activations . | . . . . . Martial Activations . | . . . . . Shielding Activations . | . . . . . Robots Disrupted . | . . . . . Combat Hostiles . | . . . . . Robots Corrupted . | . . . . . Combat Hostiles . | . . . . . Parts Fried . | . . . . . Impact Corruptions . | . . . . . Robots Melted . | . . . . . Combat Hostiles . | . . . . . Parts Melted . | . . . . . Heat Transferred . | . . . . . Parts Sabotaged . | . . . . . Parts Stolen . | . . . . . Parts Stripped . | . . . . . Power Chain Reactions . | . . . . . Alert | -11 -10 -10 -9 -9 ------- Run | Yrd Mat Sub Rec Scr Maximum Alert Level . | . . . . . Low Security (%) 100 | 100 100 . 100 . Level 1 . | . . . . . Level 2 . | . . . . . Level 3 . | . . . . . Level 4 . | . . . . . Level 5 . | . . . . . High Security . | . . . . . Max Security . | . . . . . Peak Influence 85 | 5 85 . 15 . Initial 8 | . . . 8 . Average 10 | . 17 . 1 . Influence Increases 428 | 10 162 240 16 . Destroy 0b10 Robot/C 240 | . 120 120 . . Destroy 0b10 Robot/NC 20 | 10 10 . . . Destroy Leader 32 | . 32 . . . Destroy Structure 1 | . . . 1 . Lose Combat Pursuer 135 | . . 120 15 . Influence Decreases 428 | 10 162 215 26 15 Entered New Map 32 | . . . 17 15 Time Decay 396 | 10 162 215 9 . Squads Dispatched . | . . . . . Investigation . | . . . . . Extermination . | . . . . . Reinforcement . | . . . . . Assault . | . . . . . Garrison . | . . . . . Intercept . | . . . . . Searches Triggered . | . . . . . Construction Impeded . | . . . . . Haulers Reinforced . | . . . . . Active Scanning Responses . | . . . . . Cargo Convoy Interrupts . | . . . . . Stealth | -11 -10 -10 -9 -9 --------- Run | Yrd Mat Sub Rec Scr Distress Signals 1 | . 1 . . . Communications Jammed . | . . . . . Distress Signals . | . . . . . Times Spotted 29 | . 12 16 1 . Peak Tracking Total 5 | . 5 4 1 . Tactical Retreats 6 | . . 5 1 . Traps | -11 -10 -10 -9 -9 ------- Run | Yrd Mat Sub Rec Scr Traps Triggered 2 | . 2 . . . Indirectly . | . . . . . Trap Hack Attempts . | . . . . . Triggered . | . . . . . Disarmed . | . . . . . Reprogrammed . | . . . . . Reused . | . . . . . Traps Extracted . | . . . . . Installed . | . . . . . Triggered . | . . . . . Machines | -11 -10 -10 -9 -9 ---------- Run | Yrd Mat Sub Rec Scr Machines Disabled . | . . . . . Max in Single Turn . | . . . . . Machines Repaired . | . . . . . Machines Dismantled . | . . . . . Machines Sabotaged . | . . . . . Overloaded Fab Kills . | . . . . . Hacking | -11 -10 -10 -9 -9 --------- Run | Yrd Mat Sub Rec Scr Machines Accessed 2 | . . 1 . 1 Terminals . | . . . . . Fabricators . | . . . . . Repair Stations . | . . . . . Recycling Units . | . . . . . Scanalyzers . | . . . . . Garrison Access . | . . . . . Total Hacks 5 | . . 1 . 4 Successful 5 | . . 1 . 4 Failed . | . . . . . Catastrophic . | . . . . . Database Lockouts . | . . . . . Manual . | . . . . . Terminals . | . . . . . Fabricators . | . . . . . Repair Stations . | . . . . . Recycling Units . | . . . . . Scanalyzers . | . . . . . Garrison Access . | . . . . . Terminal Hacks 5 | . . 1 . 4 Record 4 | . . . . 4 Proto ID Catalog 1 | . . 1 . . Fabricator Hacks . | . . . . . Repair Station Hacks . | . . . . . Recycling Unit Hacks . | . . . . . Scanalyzer . | . . . . . Garrison Access Hacks . | . . . . . Unauthorized Hacks . | . . . . . Terminals . | . . . . . Fabricators . | . . . . . Repair Stations . | . . . . . Recycling Units . | . . . . . Scanalyzers . | . . . . . Garrison Access . | . . . . . Data Cores Recovered . | . . . . . Used . | . . . . . Hacking Detections . | . . . . . Full Trace Events . | . . . . . Feedback Events . | . . . . . Feedback Blocked . | . . . . . Robot Schematics Acquired . | . . . . . Robots Built . | . . . . . Authchips . | . . . . . Time . | . . . . . Total Robot Build Rating . | . . . . . Part Schematics Acquired . | . . . . . Parts Built . | . . . . . Authchips . | . . . . . Time . | . . . . . Total Part Build Rating . | . . . . . Parts Repaired . | . . . . . Time . | . . . . . Parts Recycled . | . . . . . Recycled Matter . | . . . . . Retrieved Matter . | . . . . . Retrieved Components . | . . . . . Parts Scanalyzed . | . . . . . Part Schematics Acquired . | . . . . . Parts Damaged . | . . . . . Bothacking | -11 -10 -10 -9 -9 ------------ Run | Yrd Mat Sub Rec Scr Used RIF Installer . | . . . . . Robots Hacked . | . . . . . Non-combat . | . . . . . Combat . | . . . . . Robot Hacks Applied . | . . . . . Relay Couplers Released . | . . . . . Fabnet Peak Effective % . | . . . . . Robots Rewired . | . . . . . Allies Hacked . | . . . . . Hacks Repelled . | . . . . . Allies | -11 -10 -10 -9 -9 -------- Run | Yrd Mat Sub Rec Scr Total Allies . | . . . . . Largest Group . | . . . . . Highest-Rated Group . | . . . . . Highest-Rated Ally . | . . . . . Total Orders . | . . . . . Ally Attacks . | . . . . . Total Damage . | . . . . . Kills . | . . . . . Allies Corrupted . | . . . . . Allies Melted . | . . . . . Intel | -11 -10 -10 -9 -9 ------- Run | Yrd Mat Sub Rec Scr Active Infowar (turns) 1384 | 11 381 451 179 362 Terrain 1384 | 11 381 451 179 362 Structural 34 | . . . . 34 Seismic 1293 | 7 381 451 179 275 Robot Analysis Total . | . . . . . Derelict Logs Recovered 1 | . . 1 . . Drone Launches . | . . . . . Drone Recoveries . | . . . . . Exploration | -11 -10 -10 -9 -9 ------------- Run | Yrd Mat Sub Rec Scr Turns Passed 1469 | 96 381 451 179 362 Spaces Moved 2228 | 75 230 690 324 909 Core 66 | 66 . . . . Treads . | . . . . . Legs . | . . . . . Wheels 45 | 9 36 . . . Hover . | . . . . . Flight 2117 | . 194 690 324 909 Fastest Speed 30 | 50 37 34 32 30 Average Speed 35 | 81 45 35 32 31 Slowest Speed 100 | 100 93 37 34 32 Overloaded Moves . | . . . . . Propulsion Burnouts . | . . . . . Robots Hopped . | . . . . . Potential Cave-ins . | . . . . . Cave-ins Triggered . | . . . . . Exploration Rate (%) 48 | 4 49 50 64 76 Regions Visited 4 Branch Regions 3 Pre-discovered Areas 1 | . . 1 . . Known Exits Taken 4 | 1 1 1 1 . Unknown Exits Taken . | . . . . . Scrap Searched 5 | . . 3 . 2 Spaces Dug 1 | . . . 1 . Terrain Destroyed 1 | . . . 1 . Melee . | . . . . . Projectile 1 | . . . 1 . AOE . | . . . . . Terrain Rammed . | . . . . . Walls Destroyed . | . . . . . Machines Disabled . | . . . . . Actions | -11 -10 -10 -9 -9 --------- Run | Yrd Mat Sub Rec Scr Total 2773 | 99 461 832 397 984 Wait 407 | . 187 97 59 64 Move 2224 | 74 229 689 323 909 Hop . | . . . . . Pick Up 20 | 6 4 3 7 . Fast Attach 5 | 2 . . . 3 Attach 10 | 6 3 1 . . Detach . | . . . . . Swap 11 | . . 5 3 3 Drop 12 | . 3 2 4 3 Fire 78 | 11 31 33 1 2 Melee . | . . . . . Ram . | . . . . . Kick . | . . . . . Crush . | . . . . . Escape Stasis . | . . . . . Rewire . | . . . . . Trap . | . . . . . Miscellaneous 6 | . 4 2 . . Route ------- -11/Scrapyard -10/Materials (discovered 5 exits: *Mat x3 / *Min / *Sub) -10/Subcaves (discovered 2 exits: *Mat / *Rec) -9/Recycling -9/Scraptown (discovered 1 exit: Fac) History --------- Turn | Location | Event 12 | -11/Scrapyard | Identified exit to Materials 12 | -11/Scrapyard | Discovered exit to Materials (range 13) 14 | -11/Scrapyard | Upgraded with Propulsion slot (x2) 14 | -11/Scrapyard | Upgraded with Utility slot (x2) 14 | -11/Scrapyard | Upgraded with Weapon slot (x1) 97 | -11/Scrapyard | Entered Materials 148 | -10/Materials | Identified exit to Mines 148 | -10/Materials | Discovered exit to Mines (range 15) 161 | -10/Materials | Identified exit to Materials 161 | -10/Materials | Discovered exit to Materials (range 15) 192 | -10/Materials | Discovered exit to Materials (range 6) 302 | -10/Materials | Build established: Scavenger-Mutant 306 | -10/Materials | Identified exit to Subcaves 306 | -10/Materials | Discovered exit to Subcaves (range 10) 315 | -10/Materials | Discovered exit to Materials (range 15) 478 | -10/Materials | Entered Subcaves 478 | -10/Subcaves | Learned 2 Materials zone layouts 480 | -10/Subcaves | Reached level 2 503 | -10/Subcaves | Upgraded with Utility slot (x1) 618 | -10/Subcaves | Learned location of Zion (-6) 618 | -10/Subcaves | Met a Zionite searching for "candidates" 672 | -10/Subcaves | Identified exit to Recycling 672 | -10/Subcaves | Discovered exit to Recycling (range 11) 820 | -10/Subcaves | Identified exit to Materials 820 | -10/Subcaves | Discovered exit to Materials (range 15) 907 | -10/Subcaves | Visited 4L-MR0's lab 929 | -10/Subcaves | Entered Recycling 931 | -9/Recycling | Reached level 3 1100 | -9/Recycling | Scanned before Scraplab entrance 1105 | -9/Recycling | Entered Scraplab 1107 | -9/Recycling | Identified exit to Scraptown 1107 | -9/Recycling | Discovered exit to Scraptown (range 3) 1108 | -9/Recycling | Entered Scraptown 1110 | -9/Scraptown | Reached level 4 1133 | -9/Scraptown | Visited Comm Corps 1181 | -9/Scraptown | Visited CR-KLE's Repair Center 1190 | -9/Scraptown | Visited Awakened 1192 | -9/Scraptown | Visited Cyclists 1236 | -9/Scraptown | Build established: Hacker-Sprinter 1269 | -9/Scraptown | Visited UFD Registry 1269 | -9/Scraptown | Registered with UFD as "Quantumbrain" 1278 | -9/Scraptown | Visited Scrapoid Pod Storage 1283 | -9/Scraptown | Visited Infowarlord's Domain 1288 | -9/Scraptown | Visited Derelict Rescue Squad 1302 | -9/Scraptown | Visited Botcube Research 1306 | -9/Scraptown | Visited DA-N13 Charitable Foundation 1309 | -9/Scraptown | Found DCF Scrap (25 items) 1319 | -9/Scraptown | Visited Science Testing Area 1324 | -9/Scraptown | Visited Abandonware Association 1329 | -9/Scraptown | Identified exit to Factory 1329 | -9/Scraptown | Discovered exit to Factory (range 13) 1329 | -9/Scraptown | Learned abandonware demo "REBOOT5.EXE" 1335 | -9/Scraptown | Visited Chapter 10 1356 | -9/Scraptown | Visited Cartography Club 1371 | -9/Scraptown | Found Deep Structural Scanner 1384 | -9/Scraptown | Found Surveybot 17 Chip 1444 | -9/Scraptown | Visited Red Mages 1462 | -9/Scraptown | CR-KLE repaired 5 parts 1463 | -9/Scraptown | Attacked by Scraptown defenders 1469 | -9/Scraptown | Found Prototype Device 1469 | -9/Scraptown | Identified Exp. Recalibrator 1470 | -9/Scraptown | Self-destructed Last Messages --------------- Malaise!" 01444_ QW-D44(g): "For the DCSS fans like me, when we need a little consolation following torture at the hands of the RNG of life." 01444_ LOCAL NARROWCAST: Red Mages. Enter the matrix. CR-KLE: This will just take a moment... What can I say, spare parts have a way of obeying my every whim, ha ha ha. Stay in one piece now, I can only allow one repair per visitor per cycle, we have to share the resources after all. CR-KLE: You're welcome. 01463_ ANNOUNCEMENT: Intruder alert! Defend Scraptown! 01465_ CR-KLE destroyed. 01468_ Acquired 18 matter. 01468_ Discarded Targeting Computer. 01469_ Acquired Prototype Device. 01469_ Identified Exp. Recalibrator. Map ----- +----------------------------------------------------+ | ?? ?????#????????????????????????????????????? | | "? ##?????????????????????????????????????????? | | ??# #??"???????????????????????????????????????? | | ??# #??"? ? ???????????????#??#??#??????##????? | | ??# #?#? ???????????????????#??#????#?##???#??? | | ??# ###? """ ??????????????#??#?#?###?#####???#? | | ### ##?" ? ????????????#?###?##?????#??#???? | | ## ##"""""" ""#?????"?????##??##?##?#####??#?? | | ??? ????##?########??#?###?#?# | | #?#?#?#######??###?### | | ? #################?##?# | | ## ##########"" ""?"#?############?########### | | ?## ##???????##"? ? "######################??## | | ### ##########?" ""##?####################### | | #?# """"""""###" """########################## | | ### " ""##?" ?""########################## | | """ "##?"""""""########################## | | """ " ""###################### # # # ### | | " """"""""######################### # # ## ### | | ##"""######################## ##### # ### | | " " ##############"""""""""""#### #! # # ### | | " ##?"""""""""##"""""""""""#### # ## #### #### | | """ ###" "##"""""""""""#### ### # #### | | ### ###" "##""""" """""#### ####X# #### | | ### ###" """ "##""""" """""#### ## #### # #### | | ### ###" """ "##"""""@"""""#### # # ### | | #?#" """ "##""""" =""""######### ## ###### | | ###" "## !* #### ### | | ### ###" "## #### ### | | ## ###" "## ############## #### | | ### ########## ########### ################ #### | | # #########"""" """" | | # #########" | | # #########" | | # #########" | | # #########" | | # #### ############ #########" | | # ### #### #####"""" """ | | # ###" "#### #####"""" """ | | # ###" X#### #####"""" ""# | | ###" "#### #####"""" ""# | | # ####### ######### #####"""" ""# | | # ###"""# #""""#### ###"#"""" ""# | | # ###X #""""#### ""#"#"""" ""# | | # ###" #" ""#### """"#"""" ""# | | # ###X # """#### ""#######" "" | | # #####"""#""""#### #########" "" | | # ###?############# #########" ""# | | #####?########### ""# | | # #####?#?######### ""# | +----------------------------------------------------+ Best States ------------- Heat Dissipation 25 Energy Generation 10 Energy Capacity 125 Matter Stores 300 Matter Capacity 300 Sight Range 16 Terrain Scan Range 16 Terrain Scan Density 1710 Resistance: KI 35 Resistance: TH 35 Resistance: EX 35 Resistance: EM 35 Resistance: I 35 Resistance: S 35 Resistance: P 35 Evasion (%) 64 Targeting Accuracy 5 Offensive Hacking 20 Item Schematics ----------------- None Robot Schematics ------------------ None Fabricated ------------ Nothing Repaired ---------- Nothing Alien Tech Used ----------------- None Achievements -------------- None Challenges ------------ None RPGLIKE | -11 -10 -10 -9 -9 --------- Run | Yrd Mat Sub Rec Scr Levels Raised 3 | . . 1 1 1 XP Earned 10837 | 6000 750 1600 1688 799 XP Spent 7350 | 5870 . 1480 . . Upgrades 15 | 12 . 3 . . Propulsion Slot 2 | 2 . . . . Utility Slot 3 | 2 . 1 . . Weapon Slot 1 | 1 . . . . Inventory Capacity 4 | 4 . . . . Terrain Scan Density 5 | 3 . 2 . . Protomatter Created 91 | . 51 40 . . Integrity Restored 138 | . 93 45 . . Core 138 | . 93 45 . . Protomatter Decayed 34 | . 20 14 . . Game ------ Seed TimingThrowingDrivehammer Manual? 0 Play Time 00:15:08 Cumulative 980.0 hours Start 2025.07.06 @ 20:16:02 End 2025.07.06 @ 20:35:29 Sessions 2 Manual Loads 0 Difficulty Explorer Special Mode Winter2019/RPGLIKE Game No. 271 Rogue 104 Adventurer 111 Explorer 56 Win Type - Total 46 Types 21/8/1/7/2/1/1/1/1/3 Lore% 95 Gallery% 98 Achievement% 96 Wizard Run 0 Options --------- Layout 2 ASCII 0 Keyboard 0 Movement Mouse Keybinds 0 Fullscreen 2 Font 24/Smallcaps Map View 50x44 Zoom Use 0% Tactical HUD 1 Map Filters NONE Filters NONE Steam 1 RUN: 3df10a04-6715-485d-88e9-65d82308de55